bitfinex/quotes_BTCUSD_20240905
["timestamp","ask_amount","ask_price","bid_price","bid_amount"]
[1725512736603,1.45190761,57267.0,57266.0,0.066634]
[1725512737876,1.40915242,57267.0,57266.0,0.066634]
[1725512739978,1.43654962,57267.0,57266.0,0.066634]
[1725512740682,1.40915242,57267.0,57266.0,0.066634]
[1725512743966,1.43654988,57267.0,57266.0,0.066634]
[1725512750715,1.40915242,57267.0,57266.0,0.066634]
[1725512755463,1.43654988,57267.0,57266.0,0.066634]
[1725512760650,1.49874411,57267.0,57266.0,0.066634]
[1725512760861,1.47134665,57267.0,57266.0,0.066634]
[1725512761069,1.5440633,57267.0,57266.0,0.066634]
[1725512761274,1.48134665,57267.0,57266.0,0.066634]
[1725512761481,1.66805957,57267.0,57266.0,0.066634]
[1725512761706,1.77025957,57267.0,57266.0,0.066634]
[1725512763370,1.92682564,57267.0,57266.0,0.066634]
[1725512763805,1.79966037,57267.0,57266.0,0.066634]
[1725512765670,1.95626801,57267.0,57266.0,0.066634]
[1725512765878,1.81966037,57267.0,57266.0,0.066634]
[1725512766078,2.09476801,57267.0,57266.0,0.066634]
[1725512766313,2.09601156,57267.0,57266.0,0.066634]
[1725512766940,2.09401156,57267.0,57266.0,0.066634]
[1725512767177,2.09601156,57267.0,57266.0,0.066634]
[1725512767610,2.09401156,57267.0,57266.0,0.066634]
[1725512767795,2.09601156,57267.0,57266.0,0.066634]
[1725512768643,2.09401156,57267.0,57266.0,0.066634]
[1725512769358,2.09394495,57267.0,57266.0,0.066634]
[1725512769591,1.34547818,57261.0,57260.0,0.00164]
[1725512769807,1.48291547,57261.0,57260.0,0.00164]
[1725512770018,1.43586,57261.0,57260.0,0.00164]
[1725512770254,1.60762878,57261.0,57260.0,0.00164]
[1725512770473,1.57727718,57261.0,57260.0,0.00164]
[1725512770754,1.70327718,57261.0,57260.0,0.00164]
[1725512770975,1.87883226,57261.0,57260.0,0.00164]
[1725512771194,2.12683855,57261.0,57260.0,0.00164]
[1725512771786,2.12683855,57261.0,57254.0,0.0112453]
[1725512771787,0.01,57256.0,57254.0,0.0112453]
[1725512772026,0.244579,57241.0,57240.0,0.0935]
[1725512772259,1.10164063,57241.0,57240.0,0.0935]
[1725512772438,1.44621963,57241.0,57240.0,0.0935]
[1725512772773,1.47362976,57241.0,57240.0,0.0935]
[1725512773307,1.47522649,57241.0,57240.0,0.0935]
[1725512774328,1.44781636,57241.0,57240.0,0.0935]
[1725512774948,1.20323736,57241.0,57240.0,0.0935]
[1725512775380,1.22353555,57241.0,57240.0,0.0935]
[1725512776023,1.25094523,57241.0,57240.0,0.0935]
[1725512781206,1.25622274,57241.0,57240.0,0.0935]
[1725512784394,1.25622274,57241.0,57240.0,0.095132]
[1725512786271,1.25622274,57241.0,57240.0,0.214532]
[1725512786272,0.27687111,57241.0,57240.0,0.214532]
[1725512786369,0.15458211,57241.0,57240.0,0.214532]
[1725512786590,0.23146476,57241.0,57240.0,0.214532]
[1725512787083,0.25887271,57241.0,57240.0,0.214532]
[1725512787525,0.03658371,57241.0,57240.0,0.394824]
[1725512787763,0.03658371,57241.0,57240.0,0.639408]
[1725512787984,0.02740795,57241.0,57240.0,0.639408]
[1725512788207,0.02740795,57241.0,57240.0,1.039408]
[1725512788920,0.02740795,57241.0,57240.0,1.283992]
[1725512789156,0.02740795,57241.0,57240.0,1.039408]
[1725512789418,0.02740795,57241.0,57240.0,1.283992]
[1725512789642,0.02740795,57241.0,57240.0,1.039408]
[1725512790367,0.02740795,57241.0,57240.0,1.283992]
[1725512790613,0.02740795,57241.0,57240.0,1.285992]
[1725512790846,0.1,57249.0,57245.0,0.1523]
[1725512791083,0.1,57249.0,57247.0,0.213]
[1725512791335,0.00161818,57248.0,57247.0,0.213]
[1725512792732,0.122275,57248.0,57247.0,0.213]
[1725512793176,0.13244822,57248.0,57247.0,0.213]
[1725512793621,0.13218394,57248.0,57247.0,0.213]
[1725512794072,0.15958668,57248.0,57247.0,0.213]
[1725512795381,0.13218394,57248.0,57247.0,0.213]
[1725512795609,0.01017322,57248.0,57247.0,0.213]
[1725512796058,0.01098922,57248.0,57247.0,0.36177025]
[1725512796331,0.01098922,57248.0,57247.0,0.85193888]
[1725512796558,0.000816,57248.0,57247.0,0.85193888]
[1725512797033,0.02821744,57248.0,57247.0,0.85193888]
[1725512797497,0.02821744,57248.0,57247.0,0.36177025]
[1725512798170,0.02821744,57248.0,57247.0,0.76177025]
[1725512798469,0.02821744,57248.0,57247.0,0.636]
[1725512798724,0.15049244,57248.0,57247.0,0.636]
[1725512798957,0.0383797,57248.0,57247.0,0.636]
[1725512799179,0.0383797,57248.0,57247.0,0.236]
[1725512800810,0.01097826,57248.0,57247.0,0.236]
[1725512801539,0.01097826,57248.0,57247.0,0.602831]
[1725512801764,0.01097826,57248.0,57247.0,0.358277]
[1725512801987,0.000816,57248.0,57247.0,0.358277]
[1725512802205,0.000816,57248.0,57247.0,0.758277]
[1725512802678,0.000816,57248.0,57247.0,0.915554]
[1725512802906,0.000816,57248.0,57247.0,1.282385]
[1725512803394,0.000816,57248.0,57247.0,0.793277]
[1725512803637,0.00241571,57248.0,57247.0,0.793277]
[1725512803861,0.000816,57248.0,57247.0,0.793277]
[1725512804085,0.0366833,57248.0,57247.0,0.793277]
[1725512804304,0.02821748,57248.0,57247.0,0.793277]
[1725512804522,0.0366833,57248.0,57247.0,0.793277]
[1725512805707,0.0366833,57248.0,57247.0,1.037831]
[1725512806152,0.02821748,57248.0,57247.0,1.037831]
[1725512806651,0.03664902,57248.0,57247.0,0.793277]
[1725512807610,0.03664902,57248.0,57247.0,1.037831]
[1725512807869,0.122268,57252.0,57249.0,0.035]
[1725512808115,0.122268,57252.0,57250.0,0.058]
[1725512808582,0.14966943,57252.0,57250.0,0.058]
[1725512808811,0.14966943,57252.0,57251.0,0.0975]
[1725512809044,0.14966943,57252.0,57251.0,0.1205]
[1725512809746,0.150903,57252.0,57251.0,0.1205]
[1725512809961,0.250903,57252.0,57251.0,0.1205]
[1725512811163,0.22350157,57252.0,57251.0,0.1205]
[1725512811377,0.12863487,57252.0,57251.0,0.1205]
[1725512811861,0.1274013,57252.0,57251.0,0.1205]
[1725512811992,0.12863487,57252.0,57251.0,0.1205]
[1725512813071,0.49543287,57252.0,57251.0,0.023]
[1725512813949,0.122268,57251.0,57250.0,0.035]
[1725512814158,0.46804475,57251.0,57250.0,0.058]
[1725512815214,0.478496,57251.0,57250.0,0.058]
[1725512816528,0.478496,57251.0,57250.0,0.2811]
[1725512816747,0.111691,57251.0,57250.0,0.647911]
[1725512816970,0.0274013,57252.0,57250.0,0.40337]
[1725512817192,0.0274013,57252.0,57251.0,0.25066084]
[1725512817614,0.0274013,57252.0,57251.0,0.77581247]
[1725512817840,0.0274013,57252.0,57251.0,1.14045663]
[1725512818069,0.0274013,57252.0,57251.0,1.38699363]
[1725512819359,0.0274013,57252.0,57251.0,1.39699363]
[1725512820220,0.0274013,57252.0,57251.0,1.79699363]
[1725512820659,0.222237,57266.0,57262.0,0.2607]
[1725512820883,0.222237,57266.0,57263.0,0.058]
[1725512820884,0.01181075,57265.0,57263.0,0.058]
[1725512821345,0.222237,57266.0,57263.0,0.058]
[1725512821550,0.122239,57265.0,57263.0,0.058]
[1725512821771,0.1,57266.0,57265.0,0.122238]
[1725512822000,0.1,57266.0,57265.0,0.058]
[1725512822916,0.222236,57266.0,57265.0,0.058]
[1725512823129,0.711182,57266.0,57265.0,0.058]
[1725512823344,0.466709,57266.0,57265.0,0.058]
[1725512824619,0.12224,57264.0,57263.0,0.035]
[1725512825072,0.1189,57263.0,57258.0,0.4]
[1725512825297,0.1189,57263.0,57253.0,0.8729]
[1725512825298,0.366786,57254.0,57253.0,0.8729]
[1725512825514,0.366786,57254.0,57253.0,0.4]
[1725512826193,0.122266,57252.0,57251.0,0.1366]
[1725512826416,0.37725397,57252.0,57251.0,0.1366]
[1725512826631,0.13272197,57252.0,57251.0,0.1366]
[1725512827063,0.13272197,57252.0,57251.0,0.1596]
[1725512828320,0.01045597,57252.0,57251.0,0.1596]
[1725512828550,0.13272197,57252.0,57251.0,0.1596]
[1725512828759,0.122266,57252.0,57251.0,0.1596]
[1725512828969,0.13397094,57252.0,57251.0,0.1596]
[1725512829175,0.37850294,57252.0,57251.0,0.1596]
[1725512831380,0.96866694,57252.0,57251.0,0.058]
[1725512831595,0.611352,57250.0,57249.0,0.001632]
[1725512832469,0.61263178,57250.0,57249.0,0.001632]
[1725512833564,0.64003489,57250.0,57249.0,0.001632]
[1725512833775,0.61263178,57250.0,57249.0,0.001632]
[1725512834637,0.63271842,57250.0,57249.0,0.001632]
[1725512835511,0.66012163,57250.0,57249.0,0.001632]
[1725512836384,0.90466263,57250.0,57249.0,0.001632]
[1725512836848,0.91975039,57250.0,57249.0,0.001632]
[1725512839945,1.01975039,57250.0,57249.0,0.001632]
[1725512841021,1.02950492,57250.0,57249.0,0.001632]
[1725512842304,0.89214716,57250.0,57249.0,0.001632]
[1725512842530,1.01991529,57250.0,57249.0,0.001632]
[1725512847988,1.11810009,57250.0,57249.0,0.001632]
[1725512849700,1.01991529,57250.0,57249.0,0.001632]
[1725512854058,1.01991529,57250.0,57249.0,0.098932]
[1725512855129,1.01991529,57250.0,57249.0,0.001632]
[1725512859024,1.02073129,57250.0,57249.0,0.001632]
[1725512859258,0.51156265,57250.0,57249.0,0.228432]
[1725512859522,0.26702165,57250.0,57249.0,0.228432]
[1725512859748,0.51156265,57250.0,57249.0,0.228432]
[1725512860412,0.26702165,57250.0,57249.0,0.251432]
[1725512860630,0.51156265,57250.0,57249.0,0.251432]
[1725512860859,0.26702165,57250.0,57249.0,0.251432]
[1725512861743,0.51156265,57250.0,57249.0,0.251432]
[1725512861956,0.48415944,57250.0,57249.0,0.251432]
[1725512862175,0.51156239,57250.0,57249.0,0.251432]
[1725512862392,0.48415944,57250.0,57249.0,0.251432]
[1725512862847,0.51156241,57250.0,57249.0,0.251432]
[1725512863777,0.51156241,57250.0,57249.0,0.024632]
[1725512863778,0.91204329,57250.0,57249.0,0.024632]
[1725512864004,0.91204329,57250.0,57249.0,0.001632]
[1725512864005,0.85428821,57250.0,57249.0,0.001632]
[1725512864223,0.82688524,57250.0,57249.0,0.024632]
[1725512865321,1.07142624,57250.0,57249.0,0.001632]
[1725512865770,1.0988303,57250.0,57249.0,0.001632]
[1725512868433,1.0006455,57250.0,57249.0,0.001632]
[1725512868642,0.71242055,57250.0,57249.0,0.001632]
[1725512868853,0.84746206,57250.0,57249.0,0.001632]
[1725512869074,0.60292106,57250.0,57249.0,0.001632]
[1725512869317,0.35838006,57250.0,57249.0,0.227432]
[1725512869796,0.35838006,57250.0,57249.0,0.250432]
[1725512871090,0.45838006,57250.0,57249.0,0.250432]
[1725512871516,0.50780257,57250.0,57249.0,0.250432]
[1725512872169,0.23585751,57250.0,57249.0,0.250432]
[1725512872387,0.48039851,57250.0,57249.0,0.250432]
[1725512873513,0.22376278,57250.0,57249.0,0.250432]
[1725512873828,0.38400121,57250.0,57249.0,0.250432]
[1725512875198,0.16023843,57250.0,57249.0,0.250432]
[1725512875408,0.40477943,57250.0,57249.0,0.250432]
[1725512875609,0.50477943,57250.0,57249.0,0.250432]
[1725512876416,0.50477943,57250.0,57249.0,0.25392515]
[1725512877961,0.50477943,57250.0,57249.0,0.250432]
[1725512878613,0.50477943,57250.0,57249.0,0.25392515]
[1725512879836,0.50477943,57250.0,57249.0,0.250432]
[1725512880066,0.50477943,57250.0,57249.0,0.126132]
[1725512880944,0.34493306,57250.0,57249.0,0.126132]
[1725512881197,0.381152,57250.0,57249.0,0.126132]
[1725512881473,0.625693,57250.0,57249.0,0.126132]
[1725512882345,0.870234,57250.0,57249.0,0.126132]
[1725512882564,0.870234,57250.0,57249.0,0.001632]
[1725512883051,0.970234,57250.0,57249.0,0.001632]
[1725512883698,0.97105,57250.0,57249.0,0.001632]
[1725512885765,0.726509,57250.0,57249.0,0.001632]
[1725512885993,0.726509,57250.0,57249.0,0.094432]
[1725512887107,0.726509,57250.0,57249.0,0.089432]
[1725512889420,0.726509,57250.0,57244.0,0.058]
[1725512889421,0.366843,57245.0,57244.0,0.058]
[1725512889637,0.611405,57245.0,57244.0,0.058]
[1725512889845,0.62021233,57245.0,57244.0,0.058]
[1725512893350,0.62021233,57245.0,57243.0,0.035]
[1725512893351,0.713017,57244.0,57243.0,0.035]
[1725512893579,1.2968866,57244.0,57243.0,0.035]
[1725512893808,0.856012,57242.0,57241.0,0.001632]
[1725512894024,0.9681298,57242.0,57241.0,0.001632]
[1725512894240,0.96861768,57242.0,57241.0,0.001632]
[1725512895394,0.99602581,57242.0,57241.0,0.001632]
[1725512896096,0.99602581,57242.0,57241.0,0.098432]
[1725512896306,0.75145081,57242.0,57241.0,0.098432]
[1725512896516,0.73933301,57242.0,57241.0,0.098432]
[1725512899008,0.25018301,57242.0,57241.0,0.098432]
[1725512899232,0.25018301,57242.0,57241.0,0.121432]
[1725512900332,0.25018301,57242.0,57241.0,0.643721]
[1725512900333,0.12789601,57242.0,57241.0,0.643721]
[1725512900546,0.25135923,57245.0,57241.0,0.643721]
[1725512900778,0.00878092,57242.0,57241.0,0.645821]
[1725512900999,0.122283,57244.0,57241.0,0.523532]
[1725512901247,0.244562,57246.0,57242.0,0.023]
[1725512901694,0.26481716,57246.0,57242.0,0.023]
[1725512901908,0.122283,57244.0,57242.0,0.023]
[1725512902815,0.1,57243.0,57242.0,0.023]
[1725512903902,0.24969083,57243.0,57242.0,0.023]
[1725512907873,0.49426183,57243.0,57242.0,0.023]
[1725512910909,0.83701763,57243.0,57242.0,0.023]
[1725512911127,0.611437,57242.0,57241.0,0.024632]
[1725512911368,0.711437,57242.0,57241.0,0.024632]
[1725512912759,0.73884427,57242.0,57241.0,0.024632]
[1725512913600,0.73884427,57242.0,57241.0,0.001632]
[1725512913829,0.98341927,57242.0,57241.0,0.001632]
[1725512922056,1.09931927,57242.0,57241.0,0.001632]
[1725512922270,0.98341927,57242.0,57241.0,0.001632]
[1725512926011,0.95567553,57242.0,57241.0,0.001632]
[1725512927807,0.80928533,57242.0,57241.0,0.001632]
[1725512928703,0.71110053,57242.0,57241.0,0.129632]
[1725512928957,0.71110053,57242.0,57241.0,0.001632]
[1725512929434,0.95567553,57242.0,57241.0,0.001632]
[1725512932035,1.57843161,57242.0,57241.0,0.001632]
[1725512932268,1.7089985,57242.0,57241.0,0.001632]
[1725512932500,1.7118145,57242.0,57241.0,0.001632]
[1725512932741,1.58124761,57242.0,57241.0,0.001632]
[1725512933006,1.70975456,57242.0,57241.0,0.001632]
[1725512933747,1.95632956,57242.0,57241.0,0.001632]
[1725512934007,1.82582261,57242.0,57241.0,0.001632]
[1725512934287,1.75563781,57242.0,57241.0,0.001632]
[1725512934532,0.4382918,57233.0,57232.0,0.00164]
[1725512934764,1.1721338,57233.0,57232.0,0.00164]
[1725512934992,1.66361123,57233.0,57232.0,0.00164]
[1725512935264,1.0556578,57218.0,57217.0,0.4729]
[1725512935515,1.0556578,57218.0,57214.0,0.00013]
[1725512935516,0.611727,57215.0,57214.0,0.00013]
[1725512935743,0.9546028,57215.0,57214.0,0.00013]
[1725512936239,1.0546028,57215.0,57214.0,0.00013]
[1725512936970,1.5227938,57215.0,57214.0,0.00013]
[1725512938196,1.67047165,57215.0,57214.0,0.00013]
[1725512938671,1.424609,57215.0,57214.0,0.00013]
[1725512938897,1.67047165,57215.0,57214.0,0.00013]
[1725512940523,1.4507312,57215.0,57214.0,0.00013]
[1725512940806,1.4507312,57215.0,57214.0,0.12753]
[1725512940807,0.02495055,57215.0,57214.0,0.12753]
[1725512941041,0.27024158,57224.0,57215.0,0.0991]
[1725512941266,0.24586265,57229.0,57216.0,0.1504]
[1725512941267,0.122328,57223.0,57216.0,0.1504]
[1725512941480,0.122339,57218.0,57217.0,0.0991]
[1725512941697,0.24586265,57226.0,57217.0,0.1221]
[1725512941914,0.02741801,57228.0,57220.0,0.1274]
[1725512942127,0.02741801,57228.0,57221.0,0.279723]
[1725512942351,0.02741801,57228.0,57222.0,0.00349462]
[1725512942607,0.01829168,57238.0,57222.0,0.00349462]
[1725512942608,0.244606,57235.0,57224.0,0.0991]
[1725512942860,0.122308,57233.0,57227.0,0.122318]
[1725512943094,0.122308,57233.0,57226.0,0.26156]
[1725512943095,0.122299,57237.0,57231.0,0.122309]
[1725512943343,0.18354723,57242.0,57230.0,0.1274]
[1725512943573,0.24457,57244.0,57231.0,0.02649394]
[1725512943803,0.122295,57239.0,57233.0,0.122305]
[1725512944035,0.122295,57239.0,57231.0,0.27111594]
[1725512944036,0.122292,57240.0,57235.0,0.1274]
[1725512944278,0.122292,57240.0,57235.0,0.2265]
[1725512944511,0.24458,57241.0,57236.0,0.023]
[1725512944746,0.122298,57237.0,57236.0,0.023]
[1725512945653,0.1,57237.0,57236.0,0.023]
[1725512946385,0.222298,57237.0,57236.0,0.023]
[1725512946918,0.1,57237.0,57236.0,0.023]
[1725512947643,0.222298,57237.0,57236.0,0.023]
[1725512949546,0.1,57237.0,57236.0,0.023]
[1725512949762,0.222296,57238.0,57236.0,0.023]
[1725512950197,0.02740924,57237.0,57236.0,0.023]
[1725512950448,0.222296,57238.0,57236.0,0.023]
[1725512950873,0.222296,57238.0,57236.0,0.05806]
[1725512951717,0.122298,57237.0,57236.0,0.05806]
[1725512951935,0.222298,57237.0,57236.0,0.05806]
[1725512954305,0.24970723,57237.0,57236.0,0.05806]
[1725512954723,0.12740923,57237.0,57236.0,0.05806]
[1725512954936,0.02740923,57237.0,57236.0,0.05806]
[1725512955145,0.12740923,57237.0,57236.0,0.05806]
[1725512956723,0.02740923,57237.0,57236.0,0.05806]
[1725512957382,0.02740923,57237.0,57236.0,0.18036]
[1725512957827,0.02740923,57237.0,57236.0,0.669562]
[1725512958062,0.02740923,57237.0,57236.0,0.91891858]
[1725512958290,0.1,57245.0,57242.0,0.122286]
[1725512958513,0.122279,57246.0,57242.0,0.122286]
[1725512958736,0.27193655,57253.0,57243.0,0.24457]
[1725512958959,0.27193655,57253.0,57242.0,0.00349358]
[1725512958960,0.245359,57250.0,57244.0,0.2440933]
[1725512959167,0.122275,57248.0,57244.0,0.3663753]
[1725512959410,0.245359,57250.0,57244.0,0.2440933]
[1725512959621,0.244545,57249.0,57244.0,0.2440933]
[1725512959836,0.122277,57247.0,57244.0,0.2440933]
[1725512960251,0.1,57246.0,57244.0,0.3663763]
[1725512960491,0.222275,57248.0,57244.0,0.362883]
[1725512960754,0.1496827,57247.0,57244.0,0.2356]
[1725512961007,0.1,57246.0,57244.0,0.2356]
[1725512961436,0.1,57246.0,57245.0,0.4]
[1725512961641,0.1,57246.0,57245.0,0.423]
[1725512962080,0.0274057,57247.0,57245.0,0.423]
[1725512962295,0.2496827,57247.0,57245.0,0.423]
[1725512962511,0.1,57246.0,57245.0,0.423]
[1725512962934,0.1,57246.0,57245.0,1.034405]
[1725512963140,0.000816,57250.0,57245.0,0.423]
[1725512963385,0.000816,57250.0,57249.0,0.03506]
[1725512963591,0.000816,57250.0,57249.0,0.157332]
[1725512963800,0.000816,57250.0,57249.0,0.180332]
[1725512964250,0.000816,57250.0,57249.0,0.05806]
[1725512965564,0.02821988,57250.0,57249.0,0.67291523]
[1725512965779,0.02821988,57250.0,57249.0,0.90311523]
[1725512966058,0.02821988,57250.0,57249.0,1.14897788]
[1725512966266,0.02821988,57250.0,57249.0,1.54897788]
[1725512966484,0.000816,57250.0,57249.0,1.79552288]
[1725512966707,0.000816,57250.0,57249.0,1.79352288]
[1725512967358,0.000816,57250.0,57249.0,1.79002965]
[1725512968221,0.02821701,57250.0,57249.0,1.79002965]
[1725512968641,0.02821701,57250.0,57249.0,1.79202965]
[1725512968855,0.02821701,57250.0,57249.0,1.79002965]
[1725512970164,0.000816,57250.0,57249.0,1.79202965]
[1725512971743,0.02821544,57250.0,57249.0,1.79202965]
[1725512971967,0.02821544,57250.0,57249.0,2.04657465]
[1725512981899,0.000816,57250.0,57249.0,2.04657465]
[1725512982540,0.000816,57250.0,57249.0,1.87209665]
[1725512988131,0.000816,57250.0,57249.0,1.86209665]
[1725512990702,0.000816,57250.0,57249.0,2.13664165]
[1725512996236,0.02821267,57250.0,57249.0,2.13664165]
[1725512996675,0.000816,57250.0,57249.0,2.13664165]
[1725512998021,0.000816,57250.0,57249.0,1.98887727]
[1725512998260,0.0282126,57250.0,57249.0,1.98887727]
[1725513000138,0.000816,57250.0,57249.0,1.98887727]
[1725513003224,0.02821259,57250.0,57249.0,1.98887727]
[1725513003645,0.000816,57250.0,57249.0,1.98887727]
[1725513004316,0.000816,57250.0,57249.0,1.59313227]
[1725513004566,0.000816,57250.0,57249.0,1.60513227]
[1725513005030,0.000816,57250.0,57249.0,1.61513227]
[1725513005264,0.0282134,57250.0,57249.0,1.61513227]
[1725513008018,0.0282134,57250.0,57249.0,1.76230008]
[1725513008251,0.0282134,57250.0,57249.0,1.81455371]
[1725513008701,0.52650515,57264.0,57261.0,0.122246]
[1725513008702,0.33427557,57264.0,57261.0,0.122246]
[1725513008922,0.348839,57265.0,57262.0,0.05806]
[1725513009133,0.0273967,57264.0,57262.0,0.05806]
[1725513009370,0.0273967,57264.0,57262.0,0.180304]
[1725513009592,0.0273967,57264.0,57263.0,0.122242]
[1725513009820,0.0273967,57264.0,57263.0,0.145242]
[1725513010049,0.0273967,57264.0,57263.0,0.67276429]
[1725513010556,0.0273967,57264.0,57263.0,1.07276429]
[1725513011710,0.0273967,57264.0,57263.0,0.824787]
[1725513011950,0.2467967,57264.0,57263.0,0.45806]
[1725513012656,0.2467967,57264.0,57263.0,0.05806]
[1725513014128,0.6135177,57264.0,57263.0,0.05806]
[1725513014360,0.2467967,57264.0,57263.0,0.023]
[1725513015278,0.2467967,57264.0,57263.0,0.180302]
[1725513015893,0.2467967,57264.0,57263.0,0.424787]
[1725513016886,0.2476127,57264.0,57263.0,0.424787]
[1725513017572,0.0282127,57264.0,57263.0,0.424787]
[1725513017805,0.0282127,57264.0,57263.0,0.180302]
[1725513018057,0.0282127,57264.0,57263.0,0.18379428]
[1725513019693,0.0282127,57264.0,57263.0,0.58379428]
[1725513020421,0.0282127,57264.0,57263.0,0.45806]
[1725513020647,0.4927337,57264.0,57263.0,0.023]
[1725513020893,0.122242,57263.0,57262.0,0.05806]
[1725513021865,0.245142,57263.0,57262.0,0.05806]
[1725513022096,0.1229,57263.0,57262.0,0.05806]
[1725513022787,0.1229,57263.0,57262.0,0.45806]
[1725513023587,0.245142,57263.0,57262.0,0.45806]
[1725513026145,0.1229,57263.0,57262.0,0.45806]
[1725513026596,0.2482537,57264.0,57262.0,0.45806]
[1725513026819,0.0282127,57264.0,57262.0,0.45806]
[1725513027045,0.0282127,57264.0,57263.0,0.16079428]
[1725513027268,0.0282127,57264.0,57263.0,0.18379428]
[1725513028418,0.0282127,57264.0,57263.0,0.05806]
[1725513028859,0.0282127,57264.0,57263.0,0.180302]
[1725513029085,0.0282127,57264.0,57263.0,0.181932]
[1725513031923,0.04098231,57264.0,57263.0,0.181932]
[1725513032996,0.04098231,57264.0,57263.0,0.05969]
[1725513036600,0.16322231,57264.0,57263.0,0.05969]
[1725513037054,0.16322231,57264.0,57263.0,0.07269]
[1725513037055,0.40870331,57264.0,57263.0,0.07269]
[1725513042238,0.99456531,57264.0,57263.0,0.01463]
[1725513042503,1.5165024,57264.0,57263.0,0.01463]
[1725513042755,1.46014631,57264.0,57263.0,0.01463]
[1725513043282,1.58901281,57264.0,57263.0,0.00163]
[1725513043507,1.48547374,57264.0,57263.0,0.00163]
[1725513043756,1.59001167,57264.0,57263.0,0.00163]
[1725513043983,1.58901334,57264.0,57263.0,0.00163]
[1725513044231,1.83438985,57264.0,57263.0,0.00163]
[1725513044692,1.72985025,57264.0,57263.0,0.00163]
[1725513045163,1.48536925,57264.0,57263.0,0.00163]
[1725513045424,1.48736925,57264.0,57263.0,0.00163]
[1725513046346,1.56571278,57264.0,57263.0,0.00163]
[1725513046842,1.48736925,57264.0,57263.0,0.00163]
[1725513047081,1.56571657,57264.0,57263.0,0.00163]
[1725513047320,1.41950855,57264.0,57263.0,0.00163]
[1725513047584,1.43017082,57264.0,57263.0,0.00163]
[1725513047817,1.67465182,57264.0,57263.0,0.00163]
[1725513049928,1.70205308,57264.0,57263.0,0.00163]
[1725513051314,1.45757208,57264.0,57263.0,0.00163]
[1725513052161,1.45838708,57264.0,57263.0,0.00163]
[1725513054850,1.163493,57247.0,57246.0,0.4]
[1725513055086,1.26431551,57247.0,57246.0,0.4]
[1725513055329,1.27485219,57247.0,57246.0,0.4]
[1725513055562,1.30226068,57247.0,57246.0,0.4]
[1725513055786,0.957967,57245.0,57244.0,0.001632]
[1725513056010,1.057967,57245.0,57244.0,0.001632]
[1725513056489,0.935686,57245.0,57244.0,0.001632]
[1725513056754,1.057967,57245.0,57244.0,0.001632]
[1725513058941,1.06829528,57245.0,57244.0,0.001632]
[1725513061066,1.05829528,57245.0,57244.0,0.001632]
[1725513061292,1.06729528,57245.0,57244.0,0.001632]
[1725513061736,0.96529528,57245.0,57244.0,0.001632]
[1725513061997,0.95629528,57245.0,57244.0,0.001632]
[1725513062424,0.96429528,57245.0,57244.0,0.001632]
[1725513062854,0.98197416,57245.0,57244.0,0.001632]
[1725513063075,1.22653616,57245.0,57244.0,0.001632]
[1725513063310,1.28289225,57245.0,57244.0,0.001632]
[1725513063547,1.22653616,57245.0,57244.0,0.001632]
[1725513064222,1.23253616,57245.0,57244.0,0.001632]
[1725513064432,1.259947,57245.0,57244.0,0.001632]
[1725513064648,1.358047,57245.0,57244.0,0.001632]
[1725513065064,1.352047,57245.0,57244.0,0.001632]
[1725513065284,1.360047,57245.0,57244.0,0.001632]
[1725513066151,1.36032,57245.0,57244.0,0.001632]
[1725513066362,1.37044749,57245.0,57244.0,0.001632]
[1725513067243,1.36244749,57245.0,57244.0,0.001632]
[1725513067714,1.37044749,57245.0,57244.0,0.001632]
[1725513068188,1.79588924,57245.0,57244.0,0.001632]
[1725513068499,0.002,57240.0,57236.0,0.001632]
[1725513068734,1.81025951,57237.0,57236.0,0.001632]
[1725513068969,1.91025951,57237.0,57236.0,0.001632]
[1725513069428,1.92236383,57237.0,57236.0,0.001632]
[1725513069668,1.94977745,57237.0,57236.0,0.001632]
[1725513069891,1.96188178,57237.0,57236.0,0.001632]
[1725513070113,1.94977746,57237.0,57236.0,0.001632]
[1725513070598,1.69307613,57237.0,57236.0,0.001632]
[1725513071099,0.98350262,57237.0,57236.0,0.001632]
[1725513071352,0.98750262,57237.0,57236.0,0.001632]
[1725513071823,0.960089,57237.0,57236.0,0.001632]
[1725513072053,0.98104956,57237.0,57236.0,0.001632]
[1725513072492,0.98127377,57237.0,57236.0,0.001632]
[1725513074174,0.98227377,57237.0,57236.0,0.001632]
[1725513075309,1.00968564,57237.0,57236.0,0.001632]
[1725513077159,0.98227377,57237.0,57236.0,0.001632]
[1725513078049,1.22765028,57237.0,57236.0,0.001632]
[1725513078285,1.7493272,57237.0,57236.0,0.001632]
[1725513078772,1.77674223,57237.0,57236.0,0.001632]
[1725513078989,1.7738184,57237.0,57236.0,0.001632]
[1725513079204,1.71546231,57237.0,57236.0,0.001632]
[1725513079913,1.71446231,57237.0,57236.0,0.001632]
[1725513080126,1.71846231,57237.0,57236.0,0.001632]
[1725513080589,1.71846231,57237.0,57227.0,0.001632]
[1725513080590,1.326057,57228.0,57227.0,0.001632]
[1725513080811,1.57143351,57228.0,57227.0,0.001632]
[1725513081055,1.67166629,57228.0,57227.0,0.001632]
[1725513081329,1.68170733,57228.0,57227.0,0.001632]
[1725513081563,1.70912638,57228.0,57227.0,0.001632]
[1725513082669,1.46449138,57228.0,57227.0,0.001632]
[1725513083105,1.43707233,57228.0,57227.0,0.001632]
[1725513083771,1.44607233,57228.0,57227.0,0.001632]
[1725513084188,1.43707233,57228.0,57227.0,0.001632]
[1725513084622,1.68570733,57228.0,57227.0,0.001632]
[1725513085053,1.71312609,57228.0,57227.0,0.001632]
[1725513085523,2.09377796,57228.0,57227.0,0.001632]
[1725513085745,1.10179451,57215.0,57214.0,0.00013]
[1725513086205,1.21199762,57215.0,57214.0,0.00013]
[1725513087818,1.23942102,57215.0,57214.0,0.00013]
[1725513089019,1.21199762,57215.0,57214.0,0.00013]
[1725513089197,1.23942158,57215.0,57214.0,0.00013]
[1725513090312,1.26486528,57215.0,57214.0,0.00013]
[1725513090518,1.01948877,57215.0,57214.0,0.00013]